Cogmind - Beta 17 @@@ ROGUE MODE // 2026.07.27 @ 11:15:03 Player: Akl Result: Destroyed by H-55 Commando with Assault Rifle Performance ------------- Evolutions (3) 1500 Regions Visited (5) 1000 Robots Destroyed (50) 250 Value Destroyed (1681) 1681 Prototype IDs (3) 60 Alien Tech Used (0) 0 Bonus (286) 286 TOTAL SCORE: 4777 Bonus ------- Follower Combat Kills 286 Cogmind --------- Core Integrity 0/700 Matter 139/300 Energy 99/100 System Corruption 3% Temperature Cool (0) Movement Core (50) Location -7/Factory Parts ------- > --- POWER (1) -------- (None) > --- PROPULSION (4) --- (None) > --- UTILITY (5) ------ Improved Targeting Computer Improved Targeting Computer Improved Targeting Computer Improved Targeting Computer Target Analyzer > --- WEAPON (3) ------- High-powered Shotgun > --- INVENTORY (5) ---- Light Nuclear Core Improved Salvage Targeting Computer Core Analyzer Medium Armor Plating Peak State ------------ > --- POWER ------------ Light Nuclear Core > --- PROPULSION ------- Carbon-fiber Leg Carbon-fiber Leg Armored Wheel Armored Wheel > --- UTILITY ---------- Small Storage Unit Improved Targeting Computer Improved Targeting Computer Improved Targeting Computer Target Analyzer > --- WEAPON ----------- Autogun Autogun Autogun > --- INVENTORY -------- Light Nuclear Core Improved Targeting Computer Medium Armor Plating Heavy Assault Rifle Heavy Assault Rifle High-powered Shotgun [Rating: 30] Favorites ----------- Power Ion Engine Engine Ion Engine Power Core Light Nuclear Core Propulsion Wheel Leg Aluminum Leg Wheel Wheel Flight Unit Flight Unit Utility Improved Targeting Computer Device Seismic Detector Storage Small Storage Unit Processor Improved Targeting Computer Protection Medium Armor Plating Weapon Autogun Energy Gun EM Pulse Gun Ballistic Gun Autogun Build | -11 -10 -9 -9 -8 -7 ------- Run | Yrd Mat Mat Sto Mat Fac Slots Evolved 6 | . . 2 . 2 2 Power . | . . . . . . Propulsion 2 | . . 2 . . . Utility 3 | . . . . 1 2 Weapon 1 | . . . . 1 . Parts Attached 49 | 6 3 1 14 12 13 Power 5 | 1 . . 3 1 . Engine 4 | 1 . . 3 . . Core 1 | . . . . 1 . Reactor . | . . . . . . Propulsion 21 | 2 1 1 9 6 2 Treads . | . . . . . . Leg 11 | 1 . . 5 4 1 Wheel 8 | 1 1 1 3 2 . Hover . | . . . . . . Flight 2 | . . . 1 . 1 Utility 8 | 1 . . 1 3 3 Device 1 | . . . . 1 . Storage 1 | 1 . . . . . Processor 5 | . . . . 2 3 Hackware . | . . . . . . Protection 1 | . . . 1 . . Artifact . | . . . . . . Weapon 15 | 2 2 . 1 2 8 Energy Gun 2 | 2 . . . . . Energy Cannon . | . . . . . . Ballistic Gun 13 | . 2 . 1 2 8 Ballistic Cannon . | . . . . . . Launcher . | . . . . . . Special Weapon . | . . . . . . Impact Weapon . | . . . . . . Slashing Weapon . | . . . . . . Piercing Weapon . | . . . . . . Special Melee Weapon . | . . . . . . Unidentified Prototypes . | . . . . . . Parts Lost 19 | . . . 1 2 16 Power 1 | . . . . . 1 Propulsion 9 | . . . 1 2 6 Utility 1 | . . . . . 1 Weapon 8 | . . . . . 8 Highest Loss Streak 11 | . . . 1 1 11 To Critical Strikes . | . . . . . . Average Backups 6 | 1 2 7 7 7 6 Power . | . . . . 1 1 Propulsion . | . . . . . . Utility 2 | . 1 4 3 2 2 Weapon 2 | . . 3 3 3 2 Tool/Special . | . . . . . . Unused Backups 11 | . . . 1 7 3 Power 3 | . . . . 2 1 Propulsion . | . . . . . . Utility 5 | . . . 1 2 2 Weapon 3 | . . . . 3 . Tool/Special . | . . . . . . Average Slot Usage (%) 92 | . 85 77 92 99 87 Engine 6 | . 14 11 11 6 . Core 1 | . . . . 2 2 Leg 16 | . 14 11 19 17 12 Wheel 16 | . 14 22 21 17 12 Device 1 | . . . . 4 . Storage 9 | . 14 11 11 9 6 Processor 11 | . . . . 9 30 Protection 2 | . . . 5 4 . Energy Gun 2 | . 22 . . . . Ballistic Gun 21 | . 5 22 22 27 20 Peak Build Rating 30 | 6 9 10 13 26 30 Average Rating 17 | 4 6 10 11 18 26 On Entrance 10 | . 6 9 10 13 25 Avg Prop Armor Cover (%) 9 | 8 8 7 9 9 11 Naked Turns . | . . . . . . Heaviest Build 27 | 14 16 16 23 27 19 Greatest Support 30 | 10 10 20 30 24 24 Greatest Overweight (x) 3 | 1 1 . 1 1 3 Average Overweight (x) . | . 1 . . . . Largest Inventory Capacity 8 | 8 8 8 8 8 8 Average Capacity 7 | 7 8 8 8 8 7 Most Carried 8 | 5 8 7 8 8 8 Average Carried 6 | 1 2 7 7 7 6 Final Capacity 8 | 8 8 8 8 8 5 Final Carried 8 | 1 8 7 8 8 4 Class Distribution -------------------- 30% | Gunner 19% | Mutant 16% | Scavenger-Tank 13% | Scavenger-Mutant 10% | Scavenger-Gunner 9% | Commander-Mutant Dominant Class ---------------- Mutant | -10/Materials Mutant | -9/Materials Scavenger-Mutant | -9/Storage Scavenger-Tank | -8/Materials Gunner | -7/Factory Resources | -11 -10 -9 -9 -8 -7 ----------- Run | Yrd Mat Mat Sto Mat Fac Matter Collected 1683 | 260 38 . 428 514 443 Remotely . | . . . . . . Salvage Created 2017 | 90 181 . 596 622 528 Parts 123 | 5 9 . 40 38 31 Haulers Intercepted . | . . . . . . Recyclers Shooed 1 | . . . 1 . . Parts Field Recycled . | . . . . . . Retrieved Matter . | . . . . . . Parts Self-Destructed . | . . . . . . Prevented . | . . . . . . Parts Restored . | . . . . . . Kills | -11 -10 -9 -9 -8 -7 ------- Run | Yrd Mat Mat Sto Mat Fac Combat Hostiles Destroyed 43 | . 4 . 15 10 14 Guns 43 | . 4 . 15 10 14 Classes Destroyed 10 | 2 1 . 3 3 1 Worker 2 | . . . 2 . . Builder 1 | . . . . 1 . Tunneler 1 | 1 . . . . . Recycler 1 | 1 . . . . . Watcher 2 | . . . . 2 . Swarmer 12 | . . . 4 . 8 Grunt 19 | . 4 . 8 5 2 Sentry 10 | . . . 3 4 3 Hunter 1 | . . . . 1 . Programmer 1 | . . . . . 1 Best Kill Streak 5 | 2 3 . 5 5 4 Combat Bots Only 5 | . 3 . 5 4 4 Max Kills in Single Turn 1 | 1 1 . 1 1 1 Gunslinging . | . . . . . . Exploded . | . . . . . . Melee . | . . . . . . Uniques/NPCs Destroyed . | . . . . . . Combat | -11 -10 -9 -9 -8 -7 -------- Run | Yrd Mat Mat Sto Mat Fac Hostile Shots Fired 482 | . 20 . 60 42 360 Missed 182 | . 5 . 16 11 150 Hits 300 | . 15 . 44 31 210 Projectile 300 | . 15 . 44 31 210 AOE 4 | . . . . . 4 Critical Strikes 1 | . . . . . 1 Damage Taken 3537 | . 166 . 529 490 2352 Core 864 | . 34 . 90 27 713 Absorbed by Shields . | . . . . . . Core Remaining (%) 89 | 100 86 . 77 95 . Volleys Fired 137 | 2 9 . 35 32 59 Largest 3 | 2 2 . 2 3 3 Hottest 80 | 80 80 . 46 69 69 Shots Fired 320 | 4 18 . 70 96 132 Gun 320 | 4 18 . 70 96 132 Cannon . | . . . . . . Launcher . | . . . . . . Special . | . . . . . . Kinetic 300 | . 2 . 70 96 132 Thermal . | . . . . . . Explosive . | . . . . . . Electromagnetic 20 | 4 16 . . . . Robot Hit Streak 22 | 2 6 . 14 17 22 Robot Miss Streak 5 | 1 1 . 5 3 2 Penetration Max . | . . . . . . Secondary Targets 10 | . . . 5 1 4 Max Gunslinging Chain 1 | . . . 1 1 1 Shots Hit Robots 227 | 3 13 . 41 66 104 Core Hits 97 | 3 6 . 23 28 37 Critical Kills . | . . . . . . Critical Parts Destroyed 3 | . . . . . 3 Critical Strikes 3 | . . . . . 3 Destroy 3 | . . . . . 3 Melee Attacks . | . . . . . . Impact . | . . . . . . Slashing . | . . . . . . Piercing . | . . . . . . Sneak Attacks . | . . . . . . Combat Hostiles . | . . . . . . Follow-up Attacks . | . . . . . . Damage Inflicted 3561 | 41 178 . 704 987 1651 Guns 3560 | 41 178 . 703 987 1651 Cannons . | . . . . . . Explosions . | . . . . . . Melee . | . . . . . . Ramming 1 | . . . 1 . . Kinetic 3374 | . 33 . 703 987 1651 Thermal . | . . . . . . Explosive . | . . . . . . Electromagnetic 186 | 41 145 . . . . Impact . | . . . . . . Slashing . | . . . . . . Piercing . | . . . . . . Highest Corruption 3 | . . . . . 3 Average Corruption 1 | . . . . . 1 Corruption Purged . | . . . . . . Corruption Blocked . | . . . . . . Effects 6 | . . . . . 6 Matter Fused 4 | . . . . . 4 Misfires 1 | . . . . . 1 Alerts 1 | . . . . . 1 Overload Shots . | . . . . . . Overflow Damage . | . . . . . . Projectiles . | . . . . . . Explosions . | . . . . . . Melee . | . . . . . . Knockbacks . | . . . . . . Impact . | . . . . . . Kinetic . | . . . . . . Secondary . | . . . . . . Self-Inflicted Damage . | . . . . . . Shots . | . . . . . . Rammed . | . . . . . . Targets Rammed 1 | . . . 1 . . Kicked 1 | . . . 1 . . Crushed . | . . . . . . Highest Temperature 126 | 18 126 . 24 50 30 Average Temperature 22 | 12 52 . 10 21 12 Received Heat Transfer 924 | . 90 . 165 189 480 Siege Activations . | . . . . . . Martial Activations . | . . . . . . Shielding Activations . | . . . . . . Robots Disrupted . | . . . . . . Combat Hostiles . | . . . . . . Robots Corrupted . | . . . . . . Combat Hostiles . | . . . . . . Parts Fried . | . . . . . . Impact Corruptions . | . . . . . . Robots Melted . | . . . . . . Combat Hostiles . | . . . . . . Parts Melted 1 | . . . 1 . . Heat Transferred . | . . . . . . Parts Sabotaged . | . . . . . . Parts Stolen . | . . . . . . Parts Stripped . | . . . . . . Power Chain Reactions . | . . . . . . Alert | -11 -10 -9 -9 -8 -7 ------- Run | Yrd Mat Mat Sto Mat Fac Maximum Alert Level 1 | . . . 1 . . Low Security (%) 85 | 100 100 100 43 100 100 Level 1 14 | . . . 56 . . Level 2 . | . . . . . . Level 3 . | . . . . . . Level 4 . | . . . . . . Level 5 . | . . . . . . High Security . | . . . . . . Max Security . | . . . . . . Peak Influence 342 | 10 70 16 342 188 186 Initial 141 | . . 16 1 141 73 Average 100 | 2 21 11 198 92 59 Influence Increases 1794 | 10 100 . 788 429 467 Destroy 0b10 Robot/C 1100 | . 80 . 480 260 280 Destroy 0b10 Robot/NC 40 | 10 . . 15 15 . Destroy Leader 306 | . 20 . 112 104 70 Allied During Kill 151 | . . . 141 10 . Successful Hack 55 | . . . 8 9 38 Disable Machine 15 | . . . 15 . . Destroy Structure 7 | . . . 2 1 4 Partial Spotted 15 | . . . . . 15 Lose Combat Pursuer 105 | . . . 15 30 60 Influence Decreases 1709 | 10 60 34 460 601 544 Entered New Map 311 | . . 24 5 193 89 Time Decay 1028 | 10 60 10 285 368 295 Lost Part 190 | . . . 10 20 160 Lost Ally 180 | . . . 160 20 . Squads Dispatched 12 | . 2 . 3 3 4 Investigation 6 | . 1 . 1 2 2 Extermination 1 | . . . . . 1 Reinforcement 5 | . 1 . 2 1 1 Assault . | . . . . . . Garrison . | . . . . . . Intercept . | . . . . . . Searches Triggered . | . . . . . . Construction Impeded 1 | . . . . . 1 Haulers Reinforced . | . . . . . . Active Scanning Responses . | . . . . . . Cargo Convoy Interrupts 1 | . . . . . 1 Stealth | -11 -10 -9 -9 -8 -7 --------- Run | Yrd Mat Mat Sto Mat Fac Distress Signals 7 | . . . 2 4 1 Communications Jammed . | . . . . . . Distress Signals . | . . . . . . Times Spotted 91 | . 6 . 28 25 32 Peak Tracking Total 8 | . 2 . 7 5 8 Tactical Retreats 6 | . . . 1 2 3 Traps | -11 -10 -9 -9 -8 -7 ------- Run | Yrd Mat Mat Sto Mat Fac Traps Triggered 5 | . 1 . 2 . 2 Indirectly . | . . . . . . Trap Hack Attempts . | . . . . . . Triggered . | . . . . . . Disarmed . | . . . . . . Reprogrammed . | . . . . . . Reused . | . . . . . . Traps Extracted . | . . . . . . Installed . | . . . . . . Triggered . | . . . . . . Machines | -11 -10 -9 -9 -8 -7 ---------- Run | Yrd Mat Mat Sto Mat Fac Machines Disabled 1 | . . . 1 . . Max in Single Turn 1 | . . . 1 . . Machines Repaired . | . . . . . . Machines Dismantled . | . . . . . . Machines Sabotaged . | . . . . . . Overloaded Fab Kills . | . . . . . . Hacking | -11 -10 -9 -9 -8 -7 --------- Run | Yrd Mat Mat Sto Mat Fac Machines Accessed 19 | . . 1 7 8 3 Terminals 17 | . . 1 7 7 2 Fabricators 1 | . . . . . 1 Repair Stations . | . . . . . . Recycling Units . | . . . . . . Scanalyzers 1 | . . . . 1 . Garrison Access . | . . . . . . Total Hacks 55 | . . 2 18 26 9 Successful 27 | . . 1 8 14 4 Failed 28 | . . 1 10 12 5 Catastrophic 7 | . . . 2 3 2 Database Lockouts . | . . . . . . Manual 19 | . . 1 2 14 2 Terminals 47 | . . 2 18 21 6 Fabricators 3 | . . . . . 3 Repair Stations . | . . . . . . Recycling Units . | . . . . . . Scanalyzers 5 | . . . . 5 . Garrison Access . | . . . . . . Terminal Hacks 12 | . . 1 6 5 . Prototype ID Bank 2 | . . . . 2 . Open Door 3 | . . . 3 . . Locate Traps 1 | . . . . 1 . Recall Investigation 1 | . . 1 . . . Zone Layout 5 | . . . 3 2 . Fabricator Hacks 2 | . . . . . 2 Load Schematic 1 | . . . . . 1 Build 1 | . . . . . 1 Repair Station Hacks . | . . . . . . Recycling Unit Hacks . | . . . . . . Scanalyzer 5 | . . . . 5 . Insert Component 3 | . . . . 3 . Analyze 2 | . . . . 2 . Garrison Access Hacks . | . . . . . . Unauthorized Hacks 8 | . . . 2 4 2 Terminals 8 | . . . 2 4 2 Botnet 8 | . . . 2 4 2 Fabricators . | . . . . . . Repair Stations . | . . . . . . Recycling Units . | . . . . . . Scanalyzers . | . . . . . . Garrison Access . | . . . . . . Data Cores Recovered . | . . . . . . Used . | . . . . . . Hacking Detections 15 | . . 1 4 7 3 Full Trace Events 6 | . . . 1 3 2 Feedback Events 1 | . . . . . 1 Corruption 1 | . . . . . 1 Feedback Blocked . | . . . . . . Robot Schematics Acquired . | . . . . . . Robots Built . | . . . . . . Authchips . | . . . . . . Time . | . . . . . . Total Robot Build Rating . | . . . . . . Part Schematics Acquired 2 | . . . . 2 . Parts Built 2 | . . . . . 2 Authchips . | . . . . . . Time 31 | . . . . . 31 Total Part Build Rating 4 | . . . . . 4 Part Studies Acquired . | . . . . . . Parts Repaired . | . . . . . . Time . | . . . . . . Parts Recycled . | . . . . . . Recycled Matter . | . . . . . . Retrieved Matter . | . . . . . . Retrieved Components . | . . . . . . Parts Scanalyzed 2 | . . . . 2 . Part Schematics Acquired 2 | . . . . 2 . Parts Damaged . | . . . . . . Bothacking | -11 -10 -9 -9 -8 -7 ------------ Run | Yrd Mat Mat Sto Mat Fac Used RIF Installer . | . . . . . . Robots Hacked . | . . . . . . Non-combat . | . . . . . . Combat . | . . . . . . Robot Hacks Applied . | . . . . . . Relay Couplers Released . | . . . . . . Fabnet Peak Effective % . | . . . . . . Robots Rewired . | . . . . . . Allies Hacked . | . . . . . . Hacks Repelled . | . . . . . . Allies | -11 -10 -9 -9 -8 -7 -------- Run | Yrd Mat Mat Sto Mat Fac Total Allies 10 | . . . 10 . . Largest Group 10 | . . . 10 2 . Highest-Rated Group 88 | . . . 88 16 . Highest-Rated Ally 16 | . . . 16 8 . Total Orders . | . . . . . . Ally Attacks 119 | . . . 99 20 . Total Damage 1065 | . . . 917 148 . Kills 13 | . . . 10 3 . Allies Corrupted 1 | . . . . 1 . Allies Melted . | . . . . . . Intel | -11 -10 -9 -9 -8 -7 ------- Run | Yrd Mat Mat Sto Mat Fac Active Infowar (turns) 414 | . . . . 414 . Seismic 414 | . . . . 414 . Robot Analysis Total . | . . . . . . Derelict Logs Recovered . | . . . . . . Drone Launches . | . . . . . . Drone Recoveries . | . . . . . . Exploration | -11 -10 -9 -9 -8 -7 ------------- Run | Yrd Mat Mat Sto Mat Fac Turns Passed 2548 | 50 250 34 655 857 702 Spaces Moved 2037 | 40 189 42 546 690 530 Core 59 | 14 . . . . 45 Treads . | . . . . . . Legs 26 | . . . 23 3 . Wheels 1881 | 26 189 42 523 687 414 Hover . | . . . . . . Flight 71 | . . . . . 71 Fastest Speed 35 | 50 95 80 80 80 35 Average Speed 87 | 79 95 80 89 89 81 Slowest Speed 200 | 95 95 80 190 190 200 Overloaded Moves . | . . . . . . Propulsion Burnouts . | . . . . . . Robots Hopped . | . . . . . . Potential Cave-ins . | . . . . . . Cave-ins Triggered . | . . . . . . Exploration Rate (%) 33 | 3 28 6 89 55 18 Regions Visited 5 Branch Regions 1 Pre-discovered Areas . | . . . . . . Known Exits Taken . | . . . . . . Unknown Exits Taken 5 | 1 1 1 1 1 . Scrap Searched . | . . . . . . Spaces Dug . | . . . . . . Terrain Destroyed . | . . . . . . Melee . | . . . . . . Projectile . | . . . . . . AOE . | . . . . . . Terrain Rammed . | . . . . . . Walls Destroyed . | . . . . . . Machines Disabled . | . . . . . . Actions | -11 -10 -9 -9 -8 -7 --------- Run | Yrd Mat Mat Sto Mat Fac Total 2584 | 53 241 42 658 879 711 Wait 281 | . 31 . 47 111 92 Move 2032 | 39 188 41 545 689 530 Hop . | . . . . . . Pick Up 35 | 6 7 . 2 15 5 Fast Attach 14 | 1 2 . 5 4 2 Attach 19 | 5 . 1 . 4 9 Detach 2 | . . . 1 1 . Swap 20 | . 1 . 9 6 4 Drop 33 | . 3 . 11 17 2 Fire 137 | 2 9 . 35 32 59 Melee . | . . . . . . Ram . | . . . . . . Kick 1 | . . . 1 . . Crush . | . . . . . . Escape Stasis 8 | . . . . . 8 Rewire 2 | . . . 2 . . Trap . | . . . . . . Miscellaneous . | . . . . . . Route ------- -11/Scrapyard -10/Materials (discovered 2 exits: *Mat / [*Min]) -9/Materials -9/Storage -8/Materials -7/Factory (discovered 2 exits: [*Fac x2]) History --------- Turn | Location | Event 11 | -11/Scrapyard | Discovered new exit (range 16) 51 | -11/Scrapyard | Entered Materials 58 | -10/Materials | Discovered new exit (range 13) 131 | -10/Materials | Discovered new exit (range 16) 301 | -10/Materials | Entered another Materials area 301 | -9/Materials | Evolved 2 slots: Propulsion x2 322 | -9/Materials | Build established: Mutant 323 | -9/Materials | Discovered new exit (range 6) 335 | -9/Materials | Entered Storage 408 | -9/Storage | Assisted by bots powering up and referring to "LRC-V3" 544 | -9/Storage | Lost 3 allies 686 | -9/Storage | Lost 3 allies 933 | -9/Storage | Build established: Scavenger-Mutant 934 | -9/Storage | Discovered new exit (range 16) 990 | -9/Storage | Entered Materials 990 | -8/Materials | Accompanied by 2 allies 990 | -8/Materials | Evolved 2 slots: Utility x1, Weapon x1 1272 | -8/Materials | Build established: Scavenger-Tank 1821 | -8/Materials | Discovered new exit (range 16) 1847 | -8/Materials | Entered Factory 1847 | -7/Factory | Evolved 2 slots: Utility x2 1964 | -7/Factory | Build established: Gunner 2032 | -7/Factory | Discovered new exit (range 7) 2122 | -7/Factory | Lost 3 parts (1p2w) 2189 | -7/Factory | Fabricated Autogun (x2) 2472 | -7/Factory | Core integrity fell below 50% 2475 | -7/Factory | Core integrity fell below 20% 2500 | -7/Factory | Discovered new exit (range 15) 2502 | -7/Factory | Lost 11 parts (5n1u5w) 2549 | -7/Factory | Cargo convoy interrupted 2549 | -7/Factory | Destroyed by H-55 Commando with Assault Rifle Last Messages --------------- 02537_ Destroyed Gatling Laser. 02537_ Y-54 Guardian destroyed. 02540_ Acquired 49 matter. 02541_ A-27 Freighter sends out distress signal. 02548_ C-45 Heavy ARC bursts open, deploying its payload. 02548_ H-55 Commando unfolds itself. 02548_ P-60 Hacker unfolds itself. 02548_ I-36 Angel unfolds itself. 02548_ Penetrated by Slug. 02548_ C-45 Heavy ARC bursts open, deploying its payload. 02548_ X-67 Chaingunner unfolds itself. 02548_ H-55 Commando unfolds itself. 02548_ X-67 Chaingunner unfolds itself. 02548_ P-60 Hacker unfolds itself. 02548_ M-28 Smith unfolds itself. 02549_ ALERT: Cargo convoy interrupted, initiating access lockdown. 02549_ Penetrated by Slug. Map ----- +----------------------------------------------------+ | ??????????????????????????? # | | ??????????????????????????? # | | ????????????????????????????## " " " " # | | ?????????????????????????????# " " " " # | | ?????????????????????????????# " " " " # | | ?????????????????????????????/ " " " " # | | ?????????????????????????????# " " ####### | | ?????????????????????????????? " #??# | | ?????????????????????????????? " #??# " | | ??????????????????????????????# " #??# " | | ??????????????????????????"???# #??# " | | ?????????????????????????? ???# #??# | | ??????????????????????????#+#?# #??# " | | ?????????????############## #?# #??#= " | | ?????????????# # #?# * "### " | | ?????????????# # ### = ## | | ?????????????+ A # ^##### | | ?????????????# # | | ?????????????# i ]]] # | | ?????????????# p h ]]] + | | ?????????????# i%x ]] # * | | ?????????????# mh # %= | | ?????????????# hxp # ##### | | ?????????????# x # = #???? | | ?????????????# ###"" ## #+#""##???? | | ?????????????# @#?#### # ** ???? | | ???########??###+#####+##/#????####** #?? | | ???# !#????# #???# #???????#*! #?? | | ???# """ #????# #???# #???????# #?? | | ???# """ /#????# #???# #???????# +?? | | ???# """ #?#### ##### ####????# #?? | | ???# #?# #????#] "" "" #?? | | ???#/ #?# ##+########### #????# "" "" #?? | | ???####+##### # #?????# #???? " " " #?? | | ??????# # #????## ##??## " " #?? | | ??????# ####### ###### #???# ??? | | ??????# #?????# + #???# ?????? | | ??????# #?????# ###### #???????+####??????? | | ??????# #?????# #######+#######?????????????? | | ??????# #?????######## ] #?????????????? | | ??????# #????????????# !!! #?????????????? | | ??????# #????????????# !! #?????????????? | | ??????? ?????????????# !! #?????????????? | | ??????? ?????????????# #?????????????? | | ??????? ?????????????# #?????????????? | | ??????? ?????????????###############?????????????? | | ??????? ?????????????????????????????????????????? | | ??????? ?????????????????????????????????????????? | | ???????